bitfinex-derivatives/quotes_ETHF0:USTF0_20251118
["timestamp","ask_amount","ask_price","bid_price","bid_amount"]
[1763430068045,0.00495679,3027.8,3027.7,6.3522]
[1763430068251,0.00282999,3027.9,3027.8,0.3522]
[1763430068956,0.00282999,3027.9,3027.0,1.9587245]
[1763430069346,0.00495679,3027.8,3027.0,1.9587245]
[1763430069546,0.00495679,3027.8,3027.7,0.3522]
[1763430070246,0.00495679,3027.8,3027.0,0.1765]
[1763430071351,0.00495679,3027.8,3027.7,0.3522]
[1763430072753,0.00495679,3027.8,3027.0,1.9587245]
[1763430073353,0.00495679,3027.8,3027.7,0.3522]
[1763430075856,0.77232653,3028.7,3027.8,0.3522]
[1763430076159,2.34042409,3029.3,3028.5,0.3522]
[1763430076160,1.18647344,3029.3,3028.5,0.3522]
[1763430076359,0.77242545,3029.2,3027.8,1.7822245]
[1763430076661,0.77242545,3029.1,3027.8,1.7822245]
[1763430076863,0.00495679,3028.8,3028.2,0.1943]
[1763430078258,0.19835679,3028.8,3028.1,0.00495679]
[1763430081965,0.3154,3028.2,3028.1,0.00495679]
[1763430082362,0.77236116,3028.7,3028.1,0.00495679]
[1763430082559,0.19835679,3028.8,3028.1,0.00495679]
[1763430084169,0.5088,3028.2,3028.1,0.00495679]
[1763430085773,1.28244965,3028.2,3028.1,0.00495679]
[1763430087271,0.19835679,3028.8,3028.1,0.31545679]
[1763430087460,0.97213678,3028.8,3028.1,0.31545679]
[1763430087660,0.77377999,3028.7,3028.1,0.31545679]
[1763430087873,0.77377999,3028.6,3028.1,0.31545679]
[1763430088068,0.95575387,3028.5,3028.1,0.31545679]
[1763430088270,0.3108,3028.2,3028.1,0.00495679]
[1763430089167,0.182,3028.5,3028.1,0.00495679]
[1763430089369,0.97106478,3028.8,3028.1,0.00495679]
[1763430089668,0.77270799,3028.7,3028.1,0.00495679]
[1763430089870,0.77270799,3028.6,3028.1,0.00495679]
[1763430090168,0.19835679,3028.8,3028.1,0.00495679]
[1763430090365,0.3108,3028.2,3028.1,0.00495679]
[1763430091969,0.3108,3028.2,3026.7,2.33133671]
[1763430092168,1.36847344,3028.0,3026.4,0.10323798]
[1763430092474,1.18647344,3027.9,3026.4,0.10323798]
[1763430092679,1.36847344,3027.5,3026.4,0.00353798]
[1763430092972,0.182,3027.0,3026.4,0.00353798]
[1763430093273,0.18695679,3027.0,3026.4,0.00849477]
[1763430094175,0.3108,3026.5,3026.4,0.00849477]
[1763430094373,0.77314959,3026.9,3026.4,0.00849477]
[1763430094576,0.18695679,3027.0,3026.4,0.00849477]
[1763430094873,0.00495679,3027.0,3026.4,0.16389477]
[1763430095270,0.00739845,3027.0,3026.4,0.16389477]
[1763430095465,0.00739845,3027.0,3026.9,0.3105]
[1763430095671,0.31819845,3027.0,3026.4,0.19019477]
[1763430095971,0.50019845,3027.0,3026.4,0.19019477]
[1763430096977,0.31819845,3027.0,3026.4,0.19019477]
[1763430097179,0.00739845,3027.0,3026.4,0.19019477]
[1763430098377,0.18939845,3027.0,3026.4,0.00849477]
[1763430098578,0.18939845,3027.0,3026.4,0.19019477]
[1763430098869,0.00739845,3027.0,3026.4,0.19019477]
[1763430099779,0.00739845,3027.0,3026.9,0.3105]
[1763430100375,0.31819845,3027.0,3026.4,0.19019477]
[1763430100678,0.50019845,3027.0,3026.4,0.19019477]
[1763430101082,0.31819845,3027.0,3026.4,0.19019477]
[1763430103384,0.50019845,3027.0,3026.4,0.19019477]
[1763430104186,0.3108,3026.5,3026.4,0.00849477]
[1763430104392,0.4928,3026.5,3026.4,0.00849477]
[1763430104999,0.18939845,3027.0,3026.4,0.31899477]
[1763430105489,0.18939845,3027.0,3026.4,0.00849477]
[1763430105694,0.4928,3026.5,3026.4,0.00849477]
[1763430109396,0.00739845,3027.0,3026.5,0.1817]
[1763430109704,0.18939845,3027.0,3026.4,0.00849477]
[1763430112091,0.96292189,3027.0,3026.4,0.00849477]
[1763430112294,0.77424096,3026.9,3026.4,0.00849477]
[1763430112490,0.3108,3026.5,3026.4,0.00849477]
[1763430112696,0.4928,3026.5,3026.4,0.00849477]
[1763430112894,0.18939845,3027.0,3026.4,0.00849477]
[1763430113899,0.96370379,3027.0,3026.4,0.00849477]
[1763430114101,0.77430534,3026.9,3026.4,0.00849477]
[1763430114302,0.77430534,3026.8,3026.4,0.00849477]
[1763430114500,0.18939845,3027.0,3026.4,0.00849477]
[1763430114705,0.4928,3026.5,3026.4,0.00849477]
[1763430115404,0.18939845,3027.0,3026.5,0.1817]
[1763430115800,0.18939845,3027.0,3026.4,0.00849477]
[1763430116002,0.96358105,3027.0,3026.5,0.1817]
[1763430116203,0.7741826,3026.9,3026.5,0.1817]
[1763430116406,0.18939845,3027.0,3026.5,0.1817]
[1763430117099,0.96344051,3027.0,3026.5,0.1817]
[1763430117305,0.77404206,3026.9,3026.4,0.00849477]
[1763430117508,0.18939845,3027.0,3026.4,0.00849477]
[1763430118302,0.2716,3026.5,3026.4,0.28749477]
[1763430119205,0.77437034,3026.9,3026.4,0.28749477]
[1763430119505,0.77437034,3026.8,3026.4,0.28749477]
[1763430119699,0.77437034,3026.7,3026.4,0.28749477]
[1763430119899,0.18939845,3027.0,3026.4,0.28749477]
[1763430120495,0.96465654,3027.0,3026.4,0.28749477]
[1763430120700,0.77525809,3026.9,3026.4,0.28749477]
[1763430120902,0.77525809,3026.8,3026.4,0.28749477]
[1763430121100,0.77525809,3026.7,3026.4,0.28749477]
[1763430121304,0.37816083,3026.6,3026.5,0.279]
[1763430121606,1.19387189,3027.0,3026.9,0.279]
[1763430121811,0.00739845,3027.0,3026.9,0.279]
[1763430122309,0.27899845,3027.0,3026.9,0.279]
[1763430122911,0.00739845,3027.0,3026.9,6.279]
[1763430123112,0.2716,3027.7,3027.0,0.1608]
[1763430124212,0.27979946,3027.7,3026.5,0.1608]
[1763430125713,0.27979946,3027.7,3027.6,0.279]
[1763430126408,0.27979946,3027.7,3027.0,0.1608]
[1763430129411,0.27979946,3027.7,3027.6,0.279]
[1763430130210,0.27979946,3027.7,3027.0,0.1608]
[1763430132212,0.00819946,3027.7,3027.6,0.279]
[1763430132518,0.2716,3028.6,3028.5,0.279]
[1763430132714,0.2716,3028.6,3028.0,0.1608]
[1763430132915,0.2716,3028.6,3027.5,0.1608]
[1763430132916,0.1656,3028.5,3027.5,0.1608]
[1763430133321,0.00495679,3028.3,3027.7,0.00495679]
[1763430134914,0.00495679,3028.3,3028.2,0.279]
[1763430135516,0.27655679,3028.3,3027.7,0.00495679]
[1763430136621,0.27655679,3028.3,3028.2,0.279]
[1763430136822,0.00495679,3028.3,3028.2,0.279]
[1763430138423,0.27655679,3028.3,3028.2,0.279]
[1763430138825,0.27655679,3028.3,3028.0,0.1608]
[1763430139127,0.27655679,3028.3,3028.2,0.2694]
[1763430140527,0.27655679,3028.3,3028.0,0.1608]
[1763430141230,0.265,3028.1,3027.7,0.00495679]
[1763430141428,0.00495679,3028.3,3028.2,0.2694]
[1763430142626,0.77226353,3029.2,3028.9,0.2694]
[1763430142821,0.1656,3029.5,3029.0,0.1643]
[1763430143024,0.1656,3029.5,3029.0,0.43466955]
[1763430143328,0.1656,3029.5,3029.0,0.1643]
[1763430143526,0.93771037,3029.5,3029.0,0.00256099]
[1763430143729,0.265,3029.1,3029.0,0.00256099]
[1763430143921,0.77211037,3029.4,3029.0,0.27196099]
[1763430144123,0.16850665,3029.5,3029.0,0.43626099]
[1763430144323,0.00290665,3029.5,3029.0,0.43626099]
[1763430144828,0.00328509,3029.6,3029.5,0.4337]
[1763430145029,0.77181869,3030.6,3029.5,0.4337]
[1763430145427,0.77181869,3030.6,3029.5,0.2694]
[1763430145729,0.15644497,3030.5,3029.5,0.2694]
[1763430145923,0.1524,3030.0,3029.7,0.00495679]
[1763430146231,0.265,3029.8,3029.7,0.00495679]
[1763430147221,1.34291841,3030.5,3029.9,0.266]
[1763430147530,0.77092738,3030.4,3029.9,0.266]
[1763430147725,0.2523,3030.0,3029.9,0.266]
[1763430147930,0.2523,3030.0,3029.7,0.00495679]
[1763430148530,0.2523,3029.8,3029.7,0.00495679]
[1763430151929,6.2523,3029.8,3029.7,0.00495679]
[1763430152232,0.2523,3029.1,3029.0,0.26856099]
[1763430153028,0.00495679,3029.4,3029.3,0.266]
[1763430155138,0.25725679,3029.4,3029.0,0.15476099]
[1763430155345,0.00495679,3029.4,3029.0,0.26856099]
[1763430155544,0.00495679,3029.4,3029.3,0.266]
[1763430157141,0.77156674,3030.3,3030.2,0.266]
[1763430157339,0.2523,3030.3,3030.2,0.266]
[1763430157636,0.15644497,3030.5,3030.2,0.266]
[1763430158335,0.2523,3030.3,3029.5,0.1522]
[1763430158541,0.2523,3030.3,3029.5,4.0412]
[1763430159436,0.00404497,3030.5,3030.2,0.266]
[1763430159946,0.2523,3030.3,3029.6,3.889]
[1763430160744,0.2523,3029.7,3029.0,0.15476099]
[1763430160946,0.1547,3030.0,3029.0,0.15476099]
[1763430160947,0.2523,3029.1,3029.0,0.00256099]
[1763430161147,0.2523,3028.8,3028.0,0.1643]
[1763430162138,0.00495679,3028.7,3028.1,0.00495679]
[1763430163049,0.25725679,3028.7,3028.1,0.00495679]
[1763430164648,0.2523,3028.2,3028.1,0.00495679]
[1763430164848,0.2546594,3028.2,3028.1,0.00495679]
[1763430165439,0.1547,3028.0,3027.0,0.1522]
[1763430165753,1.34117344,3028.0,3026.4,1.78229589]
[1763430165944,1.18647344,3027.7,3026.4,1.78229589]
[1763430166347,0.1547,3027.5,3026.8,0.00495679]
[1763430166837,0.2523,3026.9,3026.8,0.00495679]
[1763430167051,0.1547,3027.5,3026.8,0.00495679]
[1763430167052,0.00495679,3027.2,3026.8,0.00495679]
[1763430167251,0.00495679,3027.2,3027.1,0.266]
[1763430168846,0.00495679,3027.2,3026.8,0.00495679]
[1763430169045,0.25725679,3027.2,3026.8,0.00495679]
[1763430169252,0.00495679,3027.2,3027.1,0.266]
[1763430174344,0.00495679,3027.2,3026.8,0.00495679]
[1763430174654,0.00495679,3027.2,3027.1,0.266]
[1763430175570,0.2523,3026.9,3026.8,0.00495679]
[1763430180058,0.2523,3026.6,3026.5,0.00427286]
[1763430181064,0.00495679,3027.2,3027.1,0.2381]
[1763430181358,0.24185679,3027.2,3026.5,0.14427286]
[1763430182260,0.00495679,3027.2,3027.1,0.2381]
[1763430182854,0.24185679,3027.2,3026.5,1.92656875]
[1763430183262,0.00495679,3027.2,3027.1,0.2381]
[1763430183654,0.00495679,3027.2,3026.5,1.92656875]
[1763430183655,0.24185679,3027.2,3026.5,1.92656875]
[1763430184058,0.24185679,3027.2,3027.1,0.2381]
[1763430184258,0.00495679,3027.2,3027.1,0.2381]
[1763430188153,0.24185679,3027.2,3026.5,1.92656875]
[1763430188665,0.00495679,3027.2,3027.1,0.2381]
[1763430189561,0.24185679,3027.2,3027.1,0.2381]
[1763430189768,0.24185679,3027.2,3026.5,1.92656875]
[1763430189956,0.2369,3026.6,3026.5,0.00427286]
[1763430190871,1.00715309,3026.6,3026.5,0.00427286]
[1763430191064,0.2369,3026.3,3026.2,0.00495679]
[1763430191370,0.2369,3026.3,3025.0,42.72229589]
[1763430192174,0.2369,3026.3,3025.6,0.00495679]
[1763430193166,0.77025309,3026.4,3026.3,0.2381]
[1763430193365,1.00715309,3026.4,3025.6,0.00495679]
[1763430193568,0.2369,3026.4,3025.6,0.00495679]
[1763430193961,1.00869915,3026.4,3025.6,0.00495679]
[1763430195065,0.77179915,3026.4,3026.3,0.2381]
[1763430195271,1.33737344,3027.0,3026.3,0.2381]
[1763430195763,2.10885071,3027.0,3026.3,0.2381]
[1763430195962,0.77147727,3026.9,3026.3,0.2381]
[1763430196163,0.77147727,3026.8,3026.7,0.2381]
[1763430196364,0.77147727,3026.9,3026.7,0.2381]
[1763430196671,1.00837727,3026.8,3026.0,0.14]
[1763430196974,0.77147727,3026.7,3025.6,0.00495679]
[1763430197274,0.77147727,3026.6,3025.6,1.78725268]
[1763430197566,0.92237727,3026.5,3025.6,1.78725268]
[1763430197766,0.1509,3026.5,3025.6,1.78725268]
[1763430198362,0.1509,3026.5,3025.6,0.00495679]
[1763430199865,0.2283,3025.6,3025.5,0.00390672]
[1763430200169,0.23181051,3025.6,3025.5,0.00390672]
[1763430200869,0.00351051,3025.6,3025.5,0.25480672]
[1763430201766,0.00351051,3025.6,3025.5,0.40550672]
[1763430203267,0.23181051,3025.6,3025.5,0.00390672]
[1763430204766,0.23181051,3025.6,3025.5,0.40550672]
[1763430204767,0.00351051,3025.6,3025.5,0.40550672]
[1763430205075,1.18647344,3026.6,3026.1,0.2509]
[1763430205271,0.76890778,3026.5,3026.1,0.2509]
[1763430205471,0.76890778,3026.4,3026.1,0.2509]
[1763430205664,0.2283,3026.2,3025.5,0.15460672]
[1763430205870,0.99732705,3026.2,3025.5,0.15460672]
[1763430206070,0.23152303,3026.2,3025.5,0.15460672]
[1763430207174,0.00322303,3026.2,3026.1,0.2509]
[1763430207677,0.24912303,3026.2,3025.5,0.15460672]
[1763430209079,0.24912303,3026.2,3025.5,0.00390672]
[1763430209679,0.2459,3025.6,3025.5,0.00390672]
[1763430213690,0.2459,3025.6,3025.5,0.00390672]
[1763430214381,0.2459,3025.6,3025.5,0.24090672]
[1763430214584,0.2459,3025.6,3025.5,0.00390672]
[1763430217093,0.76906494,3025.9,3025.5,0.38460672]
[1763430217389,0.76906494,3025.8,3025.5,0.38460672]
[1763430217690,0.1496,3026.0,3025.5,0.38460672]
[1763430218187,0.2459,3025.6,3025.5,0.00390672]
[1763430218383,0.77013501,3025.9,3025.5,0.00390672]
[1763430218690,0.2459,3025.6,3025.5,0.00390672]
[1763430219986,0.2459,3025.6,3025.5,0.38460672]
[1763430220184,0.2459,3025.6,3025.5,0.00390672]
[1763430220386,0.2459,3025.6,3025.5,0.24090672]
[1763430221991,0.2459,3025.6,3025.5,0.38460672]
[1763430222192,1.18969647,3026.2,3025.5,0.38460672]
[1763430222393,0.24912303,3026.2,3026.1,0.237]
[1763430222695,0.24912303,3026.2,3025.5,0.14760672]
[1763430223188,0.00322303,3026.2,3026.1,0.237]
[1763430225089,0.2459,3026.1,3026.0,0.1437]
[1763430225291,0.2459,3026.1,3025.6,3.889]
[1763430225492,0.00322303,3026.2,3026.1,0.237]
[1763430226195,0.00322303,3026.2,3026.1,4.126]
[1763430226696,1.96297548,3027.2,3026.1,4.126]
[1763430226890,0.77154525,3027.1,3026.2,3.889]
[1763430227094,0.77154525,3027.0,3026.2,3.889]
[1763430227392,0.77154525,3026.9,3026.2,3.889]
[1763430227591,0.00385733,3027.0,3026.7,0.237]
[1763430227895,0.2459,3026.8,3026.5,0.1437]
[1763430228287,0.00385733,3027.0,3026.9,0.237]
[1763430228593,0.2459,3026.7,3026.6,3.889]
[1763430228791,0.2459,3026.7,3026.6,4.126]
[1763430228992,0.00385733,3027.0,3026.6,4.126]
[1763430229190,0.2459,3026.7,3026.6,4.126]
[1763430229387,0.00385733,3027.0,3026.6,4.126]
[1763430229993,0.2459,3026.7,3026.6,3.889]
[1763430230791,0.77075903,3026.9,3026.6,4.126]
[1763430230999,0.2459,3026.7,3026.6,4.126]
[1763430231190,0.2459,3026.7,3026.6,3.889]
[1763430231890,0.77065033,3026.9,3026.6,4.126]
[1763430232089,0.2459,3026.7,3026.6,4.126]
[1763430232491,0.2459,3026.7,3026.6,0.237]
[1763430233589,0.00385733,3027.0,3026.6,0.237]
[1763430234194,0.2459,3026.7,3026.6,0.237]
[1763430234390,0.2459,3026.6,3026.5,0.1437]
[1763430234797,0.2459,3026.6,3026.1,3.889]
[1763430235000,0.2459,3026.6,3026.2,3.889]
[1763430235197,0.2459,3026.6,3026.5,0.3807]
[1763430237605,0.77029608,3026.9,3026.5,0.3807]
[1763430237792,0.00385733,3027.0,3026.5,0.3807]
[1763430239191,0.15525733,3027.0,3026.5,0.3807]
[1763430240298,0.2501,3026.3,3026.2,4.1393]
[1763430240500,0.2489,3026.3,3026.2,3.889]
[1763430240893,0.76958989,3026.9,3026.2,4.1393]
[1763430241094,0.76958989,3026.8,3026.2,4.1393]
[1763430241402,0.76958989,3026.7,3026.2,4.1393]
[1763430241602,0.15525733,3027.0,3026.2,4.1393]
[1763430242794,0.00385733,3027.0,3026.2,4.1393]
[1763430244400,0.00385733,3027.0,3026.2,0.2503]
[1763430245500,0.77312385,3027.0,3026.2,0.2503]
[1763430245704,0.76926652,3026.9,3026.2,0.2503]
[1763430245891,0.76926652,3026.8,3026.2,0.2503]
[1763430246089,0.76926652,3026.7,3026.2,0.2503]
[1763430246397,0.00385733,3027.0,3026.6,0.2503]
[1763430246894,1.02449634,3027.0,3026.9,0.2503]
[1763430247298,0.25275733,3027.0,3026.9,0.2503]
[1763430247497,0.2489,3026.6,3026.1,3.889]
[1763430247692,0.2489,3026.6,3026.5,0.1504]
[1763430247899,0.2489,3026.6,3026.5,0.4007]
[1763430248194,0.77173901,3026.7,3026.6,0.2503]
[1763430248696,0.00385733,3027.0,3026.6,0.2503]
[1763430250398,0.00385733,3027.0,3026.9,0.2503]
[1763430250610,0.2489,3026.6,3026.5,0.1504]
[1763430250799,1.18647344,3026.6,3026.0,0.1437]
[1763430251000,1.18647344,3026.6,3025.2,0.00495679]
[1763430251001,2.32328039,3026.3,3025.2,0.00495679]
[1763430251199,1.13680695,3026.0,3025.2,0.00495679]
[1763430251405,0.77173901,3025.9,3025.2,0.00495679]
[1763430251805,0.77173901,3025.8,3025.2,0.00495679]
[1763430252006,0.77173901,3025.7,3025.2,0.00495679]
[1763430252202,0.77173901,3025.6,3025.2,0.00495679]
[1763430253207,1.18647344,3026.1,3025.5,0.39790672]
[1763430254007,1.95850126,3026.1,3025.5,0.39790672]
[1763430254204,0.77202782,3026.0,3025.5,0.39790672]
[1763430254605,0.77202782,3025.9,3025.5,0.39790672]
[1763430254804,0.77202782,3025.8,3025.5,0.39790672]
[1763430255005,0.77202782,3025.7,3025.5,0.39790672]
[1763430255211,1.18647344,3026.2,3025.5,0.39790672]
[1763430255907,1.18647344,3026.0,3025.5,0.14760672]
[1763430257410,0.7718578,3025.9,3025.5,0.14760672]
[1763430257605,0.7718578,3025.8,3025.7,0.2503]
[1763430257912,1.18647344,3026.5,3026.0,0.4007]
[1763430258209,1.18647344,3026.5,3026.0,0.1504]
[1763430259804,1.95742935,3026.5,3026.0,0.1504]
[1763430260006,0.77095591,3026.4,3026.0,0.1504]
[1763430260211,0.77095591,3026.3,3026.0,0.1504]
[1763430260414,0.77095591,3026.2,3026.0,0.1504]
[1763430260607,0.77095591,3026.1,3025.5,0.14760672]
[1763430260911,0.77095591,3026.0,3025.5,0.14760672]
[1763430261113,0.77095591,3025.9,3025.5,0.14760672]
[1763430261411,0.77095591,3025.8,3025.7,0.2326]
[1763430261808,1.18647344,3026.4,3025.7,0.2326]
[1763430262414,1.18647344,3026.5,3026.0,0.143]
[1763430262612,1.18647344,3026.8,3026.5,0.143]
[1763430262811,1.7613691,3027.0,3026.5,0.143]
[1763430262812,0.77160279,3026.7,3026.5,0.143]
[1763430263012,0.77160279,3026.6,3026.5,0.143]
[1763430263207,0.77160279,3026.6,3026.0,0.143]
[1763430263414,0.77160279,3026.5,3026.0,0.143]
[1763430263716,1.18647344,3026.9,3026.5,0.143]
[1763430264709,1.19033077,3027.0,3026.5,0.143]
[1763430265010,0.77562574,3027.0,3026.5,0.143]
[1763430265210,0.77176841,3026.9,3026.8,0.2326]
[1763430265414,0.00385733,3027.0,3026.9,0.2326]
[1763430265625,0.00385733,3027.0,3026.5,0.143]
[1763430265919,0.7759522,3027.0,3026.5,0.143]
[1763430266117,0.77209487,3026.9,3026.8,0.2326]
[1763430266515,0.77209487,3026.9,3026.5,0.143]
[1763430266718,0.77209487,3026.8,3026.5,0.143]
[1763430266921,0.77209487,3026.7,3026.6,0.2326]
[1763430267511,0.00385733,3027.0,3026.6,0.2326]
[1763430270525,0.00385733,3027.0,3026.9,0.2406]
[1763430272522,0.00385733,3027.0,3026.5,0.143]
[1763430273019,2.97608746,3027.0,3026.5,0.143]
[1763430273221,0.77209487,3026.9,3026.5,0.143]
[1763430273424,1.95856831,3026.9,3026.5,0.143]
[1763430273623,1.18647344,3026.8,3026.5,0.143]
[1763430274122,1.18647344,3026.8,3026.5,0.1506]
[1763430274324,0.77209487,3026.7,3026.5,0.1506]
[1763430274621,0.77284685,3026.6,3026.5,0.3912]
[1763430274926,1.16653722,3026.8,3026.5,0.1506]
[1763430275115,3.12585751,3026.8,3026.5,0.1506]
[1763430275315,0.77284685,3026.7,3026.5,0.1506]
[1763430276718,0.77284685,3026.7,3026.0,0.143]
[1763430276911,2.55834818,3026.7,3026.0,0.143]
[1763430277112,0.77284685,3026.6,3026.0,0.143]
[1763430278122,1.95932029,3026.6,3026.0,0.143]
[1763430279420,1.95932029,3026.6,3026.5,0.3912]
[1763430279626,0.00385733,3027.0,3026.9,0.2406]
[1763430280126,0.00385733,3027.0,3026.5,0.1506]
[1763430280127,1.18647344,3028.7,3028.3,0.2406]
[1763430280323,0.77253842,3028.6,3028.5,0.3912]
[1763430280525,1.18647344,3028.9,3028.5,0.3912]
[1763430280720,1.18647344,3029.2,3029.0,0.1506]
[1763430280922,1.18886456,3029.2,3029.0,0.15398071]
[1763430281122,0.0089,3029.1,3029.0,0.15398071]
[1763430281318,0.00239112,3029.2,3029.0,0.39458071]
[1763430281522,1.18647344,3030.6,3029.3,0.2406]
[1763430282120,1.18647344,3030.7,3029.3,0.2406]
[1763430282423,0.00406707,3030.7,3029.3,0.2406]
[1763430282616,0.00495679,3030.3,3029.3,0.2406]
[1763430287329,0.00495679,3030.3,3029.3,2.02610133]
[1763430288835,0.00406707,3030.7,3030.6,0.2406]
[1763430289137,3.16817344,3032.0,3030.6,0.2406]
[1763430289327,1.9817,3032.0,3030.6,0.2406]
[1763430290029,1.9817,3032.0,3030.5,1.93610133]
[1763430290030,0.00494836,3031.6,3031.0,0.15554836]
[1763430294835,0.00494836,3031.6,3031.5,0.3912]
[1763430295042,0.00257188,3032.0,3031.9,0.2406]
[1763430298743,0.23527188,3032.0,3031.5,0.15488502]
[1763430298942,0.00257188,3032.0,3031.9,0.2314]
[1763430300641,0.00493715,3032.3,3032.2,0.2314]
[1763430300840,0.89906177,3033.5,3032.2,0.2314]
[1763430301233,0.89906177,3033.5,3031.5,0.15488502]
[1763430301234,0.2327,3032.3,3031.5,0.15488502]
[1763430301433,0.1459,3033.0,3032.2,0.2314]
[1763430301649,0.00277572,3033.0,3032.2,0.2314]
[1763430301946,0.00277572,3033.0,3032.9,0.2314]
[1763430302641,0.2327,3032.6,3032.3,0.00494836]
[1763430303140,0.2327,3032.4,3032.3,0.00494836]
[1763430304144,0.14867572,3033.0,3032.3,0.23634836]
[1763430305338,0.00277572,3033.0,3032.3,0.23634836]
[1763430305537,0.00277572,3033.0,3032.9,0.2314]
[1763430305738,0.0346,3033.7,3033.6,0.2314]
[1763430306139,0.2673,3033.7,3032.5,0.1405]
[1763430306441,0.2673,3033.7,3032.3,0.00494836]
[1763430306442,1.78550133,3033.1,3032.3,0.00494836]
[1763430306644,0.85070656,3033.0,3032.3,0.00494836]
[1763430306841,0.85499434,3033.0,3032.3,0.00494836]
[1763430307044,0.09618778,3033.0,3032.3,0.00494836]
[1763430308545,0.00428778,3033.0,3032.9,0.2314]
[1763430309840,0.76196114,3033.4,3033.0,0.1405]
[1763430310044,0.0346,3033.7,3033.6,0.2314]
[1763430310544,0.0346,3033.7,3033.0,0.1405]
[1763430310851,0.1459,3033.6,3032.4,0.1405]
[1763430311045,0.14977946,3033.6,3032.4,0.1405]
[1763430311239,1.3362529,3033.6,3032.4,0.1405]
[1763430311452,1.18647344,3033.4,3032.4,0.1405]
[1763430311846,1.18647344,3033.5,3032.4,0.1405]
[1763430312354,1.95100106,3033.4,3032.4,0.1405]
[1763430312554,0.76452762,3033.3,3032.4,0.1405]
[1763430312746,0.76452762,3033.2,3032.4,0.1405]
[1763430312946,0.76452762,3033.1,3032.4,0.1405]
[1763430313250,0.76452762,3033.0,3032.9,0.2314]
[1763430313649,1.18647344,3033.4,3032.3,0.00494836]
[1763430313840,0.3267,3032.4,3032.3,0.00494836]
[1763430314044,1.51317344,3032.4,3031.5,0.15488502]
[1763430314441,1.95100106,3032.3,3031.5,0.15488502]
[1763430314651,0.2327,3031.6,3031.5,0.00428502]
[1763430315246,1.41917344,3031.6,3031.5,0.00428502]
[1763430316345,1.41917344,3031.6,3030.0,0.1405]
[1763430316346,0.1459,3031.2,3030.0,0.1405]
[1763430316551,1.17655612,3031.1,3030.0,0.1405]
[1763430316742,0.76452762,3031.0,3030.9,0.2314]
[1763430317147,0.2327,3031.0,3030.0,0.1405]
[1763430317352,0.2327,3030.1,3029.4,0.1405]
[1763430317546,1.18150448,3030.1,3029.4,0.14544836]
[1763430317750,0.00494836,3030.1,3030.0,0.2314]
[1763430318056,0.7718974,3030.1,3030.0,0.3719]
[1763430318250,0.7718974,3030.1,3029.4,0.14544836]
[1763430318251,0.00494836,3030.1,3029.4,0.14544836]
[1763430318457,0.1486,3030.0,3029.4,0.00762739]
[1763430318652,1.17655612,3029.8,3029.4,0.00762739]
[1763430318852,1.17655612,3029.8,3028.2,0.1405]
[1763430318853,0.2293,3029.5,3028.2,0.1405]
[1763430319053,1.17655612,3029.2,3028.2,0.1405]
[1763430319251,0.76694904,3029.1,3028.2,0.1405]
[1763430319552,0.76694904,3029.0,3028.2,0.1405]
[1763430319757,0.76694904,3028.9,3028.8,0.2493]
[1763430320252,1.17655612,3029.6,3028.8,2.18180133]
[1763430320457,2.34537245,3030.1,3028.8,2.18491557]
[1763430320458,0.76466263,3029.5,3028.8,2.18491557]
[1763430320752,1.91343419,3030.0,3028.8,0.39941424]
[1763430320753,0.76466263,3029.4,3028.8,0.39941424]
[1763430321057,0.00494836,3030.1,3030.0,0.2493]
[1763430321352,0.00494836,3030.1,3029.4,0.147]
[1763430321950,0.00494836,3030.1,3030.0,0.3963]
[1763430322146,0.00494836,3030.1,3029.4,0.147]
[1763430322749,0.00494836,3030.1,3030.0,0.2493]
[1763430323757,0.00494836,3030.1,3030.0,0.3963]
[1763430325160,0.00494836,3030.1,3029.4,0.147]
[1763430325666,0.00494836,3030.1,3030.0,0.2493]
[1763430326258,0.00494836,3030.1,3030.0,0.3963]
[1763430326458,0.00350719,3031.0,3030.6,0.3963]
[1763430326661,0.00350719,3031.0,3030.0,0.147]
[1763430327359,0.00494836,3030.8,3030.2,0.00494836]
[1763430327756,0.2325,3030.3,3030.2,0.00494836]
[1763430327952,0.00494836,3030.8,3030.2,0.23914836]
[1763430328157,0.00494836,3030.8,3030.7,0.2342]
[1763430328565,0.00494836,3030.8,3030.2,0.00494836]
[1763430331556,0.1429,3030.6,3030.2,0.00494836]
[1763430331757,0.00494836,3030.8,3030.2,0.00494836]
[1763430332563,0.2325,3030.3,3030.2,0.00494836]
[1763430332762,0.1429,3030.6,3030.2,0.00494836]
[1763430333359,0.00494836,3030.8,3030.2,0.00494836]
[1763430333856,0.00494836,3030.8,3030.7,0.2342]
[1763430334666,0.23744836,3030.8,3030.3,3.889]
[1763430335264,0.00494836,3030.8,3030.7,0.2342]
[1763430340163,0.00494836,3030.8,3030.3,3.889]
[1763430340368,0.00494836,3030.8,3030.7,0.2342]
[1763430341372,0.23744836,3030.8,3030.3,3.889]
[1763430341680,0.00494836,3030.8,3030.7,0.2342]
[1763430342272,0.23744836,3030.8,3030.3,3.889]
[1763430342478,0.23744836,3030.8,3030.2,0.00494836]
[1763430344976,0.2325,3030.3,3030.2,0.00494836]
[1763430345182,0.2325,3030.3,3029.4,0.147]
[1763430346081,0.2325,3030.3,3029.5,0.00494836]
[1763430346376,0.1429,3030.5,3030.2,0.2342]
[1763430346577,0.00494836,3030.8,3030.5,0.2342]
[1763430346785,0.00494836,3030.8,3030.7,0.2342]
[1763430346982,0.23744836,3030.8,3030.0,0.1406]
[1763430349484,1.00760969,3030.8,3030.0,0.1406]
[1763430349685,0.77016133,3030.7,3030.0,0.1406]
[1763430349984,0.77016133,3030.6,3030.5,0.2342]
[1763430350381,0.00494836,3030.8,3030.5,0.2342]
[1763430350777,0.00494836,3030.8,3030.7,0.2342]
[1763430352587,0.23744836,3030.8,3030.1,3.889]
[1763430353891,1.41400448,3030.8,3030.1,3.889]
[1763430354490,1.95166581,3030.8,3030.1,3.889]
[1763430354690,0.77016133,3030.7,3030.1,3.889]
[1763430354886,0.1429,3030.5,3030.1,3.889]
[1763430355581,0.1429,3030.5,3030.0,0.1406]
[1763430355777,1.18150448,3030.8,3030.0,0.1406]
[1763430355978,1.95166581,3030.8,3030.0,0.1406]
[1763430356283,0.77016133,3030.7,3030.0,0.1406]
[1763430356487,0.7736348,3030.6,3030.5,0.2342]
[1763430356686,0.00494836,3030.8,3030.7,0.2342]